[Event "*** Titled Tuesday Blitz"]
[Site "Chess.com"]
[Date "2020.04.28"]
[Round "1"]
[White "Sergey85Rodchenkov"]
[Black "Dr_Thomas_Quilter"]
[Result "1-0"]
[WhiteElo "2541"]
[BlackElo "2153"]
[TimeControl "180+1"]
[EndTime "10:07:38 PDT"]
[Termination "Sergey85Rodchenkov won on time"]

1. e4 {[%clk 0:02:56.1]} 1... e5 {[%clk 0:02:59.1]} 2. Nf3 {[%clk 0:02:55.6]}
2... Qe7 {[%clk 0:02:59.8]} 3. Bc4 {[%clk 0:02:54.6]} 3... c6 {[%clk 0:02:59.3]}
4. c3 {[%clk 0:02:52.2]} 4... Nf6 {[%clk 0:02:56.8]} 5. d3 {[%clk 0:02:52.3]}
5... d6 {[%clk 0:02:54.9]} 6. O-O {[%clk 0:02:50.3]} 6... Be6 {[%clk 0:02:47.6]}
7. Bb3 {[%clk 0:02:40.2]} 7... Nbd7 {[%clk 0:02:41]} 8. Re1 {[%clk 0:02:36.4]}
8... h6 {[%clk 0:02:38.1]} 9. Bc2 {[%clk 0:02:30]} 9... g5 {[%clk 0:02:32.5]}
10. d4 {[%clk 0:02:29.4]} 10... O-O-O {[%clk 0:02:27.4]} 11. Be3 {[%clk
0:02:21.6]} 11... Kb8 {[%clk 0:02:18.1]} 12. Na3 {[%clk 0:02:10.3]} 12... Bg7
{[%clk 0:02:11.6]} 13. Qd3 {[%clk 0:01:37.2]} 13... Nh5 {[%clk 0:01:53.6]} 14.
Rad1 {[%clk 0:01:34.9]} 14... d5 {[%clk 0:01:35.5]} 15. Nxe5 {[%clk 0:01:26.6]}
15... Nxe5 {[%clk 0:01:25.6]} 16. dxe5 {[%clk 0:01:26.6]} 16... Bxe5 {[%clk
0:01:21.6]} 17. exd5 {[%clk 0:01:26.8]} 17... Bxd5 {[%clk 0:01:15.1]} 18. Bd4
{[%clk 0:01:26.9]} 18... f6 {[%clk 0:01:01.8]} 19. Nc4 {[%clk 0:01:15.8]} 19...
Nf4 {[%clk 0:00:55.9]} 20. Nxe5 {[%clk 0:01:15.4]} 20... Nxd3 {[%clk 0:00:33.9]}
21. Nxc6+ {[%clk 0:01:14.9]} 21... Bxc6 {[%clk 0:00:29.9]} 22. Rxe7 {[%clk
0:01:15.2]} 22... Nxb2 {[%clk 0:00:29.7]} 23. Rb1 {[%clk 0:01:12.7]} 23... Nc4
{[%clk 0:00:27]} 24. Be4 {[%clk 0:01:00.3]} 24... Bxe4 {[%clk 0:00:18.4]} 25.
Rxe4 {[%clk 0:00:59.5]} 25... Nd2 {[%clk 0:00:18.5]} 26. Ree1 {[%clk 0:00:59.3]}
26... Nxb1 {[%clk 0:00:18.6]} 27. Rxb1 {[%clk 0:00:59.7]} 27... Rhf8 {[%clk
0:00:18]} 28. h4 {[%clk 0:00:58.3]} 28... Rd5 {[%clk 0:00:15.3]} 29. Kh2 {[%clk
0:00:55.3]} 29... b6 {[%clk 0:00:15.4]} 30. Re1 {[%clk 0:00:54.3]} 30... Rd7
{[%clk 0:00:13.3]} 31. Re6 {[%clk 0:00:53.7]} 31... Rdf7 {[%clk 0:00:10.7]} 32.
Kg3 {[%clk 0:00:52.8]} 32... Kb7 {[%clk 0:00:11.2]} 33. Kg4 {[%clk 0:00:51.9]}
33... Kc7 {[%clk 0:00:07.4]} 34. Kh5 {[%clk 0:00:49.4]} 34... Kd7 {[%clk
0:00:07.4]} 35. Re3 {[%clk 0:00:47]} 35... gxh4 {[%clk 0:00:06.1]} 36. Kxh4
{[%clk 0:00:47]} 36... f5 {[%clk 0:00:06.4]} 37. Kh5 {[%clk 0:00:44.6]} 37...
Re8 {[%clk 0:00:05]} 38. Rf3 {[%clk 0:00:42.2]} 38... f4 {[%clk 0:00:04.1]} 39.
Kxh6 {[%clk 0:00:40.6]} 39... Re2 {[%clk 0:00:04.6]} 40. Kg5 {[%clk 0:00:39.3]}
40... Rxa2 {[%clk 0:00:03.9]} 41. Kg6 {[%clk 0:00:39.4]} 41... Rf8 {[%clk
0:00:03.5]} 42. Bg7 {[%clk 0:00:38.3]} 42... Re8 {[%clk 0:00:03.7]} 43. Rxf4
{[%clk 0:00:38.3]} 43... Re6+ {[%clk 0:00:03.9]} 44. Kf7 {[%clk 0:00:36.2]}
44... Re7+ {[%clk 0:00:03.4]} 45. Kf6 {[%clk 0:00:36.2]} 45... Re6+ {[%clk
0:00:03.8]} 46. Kf7 {[%clk 0:00:36.4]} 46... Re7+ {[%clk 0:00:04.2]} 47. Kg6
{[%clk 0:00:37]} 47... Re6+ {[%clk 0:00:03.7]} 48. Bf6 {[%clk 0:00:37.9]} 48...
Ra5 {[%clk 0:00:02.9]} 49. Kf7 {[%clk 0:00:38.8]} 49... Rd5 {[%clk 0:00:02.7]}
50. g4 {[%clk 0:00:37.4]} 50... Rdd6 {[%clk 0:00:03.1]} 51. g5 {[%clk
0:00:37.7]} 51... Rd5 {[%clk 0:00:03.1]} 52. g6 {[%clk 0:00:37.7]} 52... Rf5
{[%clk 0:00:01.1]} 53. Rxf5 {[%clk 0:00:37.2]} 1-0

[Event "*** Titled Tuesday Blitz"]
[Site "Chess.com"]
[Date "2020.04.28"]
[Round "1"]
[White "Kosche007"]
[Black "capatl"]
[Result "0-1"]
[WhiteElo "2316"]
[BlackElo "2643"]
[TimeControl "180+1"]
[EndTime "10:07:39 PDT"]
[Termination "capatl won on time"]

1. e4 {[%clk 0:02:58.3]} 1... c5 {[%clk 0:02:59.9]} 2. Nf3 {[%clk 0:02:58.1]}
2... e6 {[%clk 0:03:00.4]} 3. b3 {[%clk 0:02:57.1]} 3... Nc6 {[%clk 0:02:58.5]}
4. Bb2 {[%clk 0:02:55.3]} 4... Qc7 {[%clk 0:02:56]} 5. c4 {[%clk 0:02:35.5]}
5... d6 {[%clk 0:02:53.8]} 6. d4 {[%clk 0:02:32.6]} 6... cxd4 {[%clk 0:02:53.3]}
7. Nxd4 {[%clk 0:02:33.5]} 7... a6 {[%clk 0:02:53.4]} 8. Nc3 {[%clk 0:02:32.4]}
8... Nf6 {[%clk 0:02:52.7]} 9. g3 {[%clk 0:02:31.3]} 9... Be7 {[%clk 0:02:52.8]}
10. Bg2 {[%clk 0:02:31.4]} 10... O-O {[%clk 0:02:52.7]} 11. O-O {[%clk
0:02:31.5]} 11... Bd7 {[%clk 0:02:49]} 12. Rc1 {[%clk 0:02:27.7]} 12... Nxd4
{[%clk 0:02:29.3]} 13. Qxd4 {[%clk 0:02:28.6]} 13... Rfd8 {[%clk 0:02:28.8]} 14.
h3 {[%clk 0:02:22.4]} 14... Rac8 {[%clk 0:02:27.9]} 15. Rfd1 {[%clk 0:02:17.4]}
15... Qb8 {[%clk 0:02:17]} 16. Kh2 {[%clk 0:01:18.8]} 16... b5 {[%clk
0:02:10.9]} 17. cxb5 {[%clk 0:01:18.6]} 17... axb5 {[%clk 0:02:11.8]} 18. f4
{[%clk 0:01:13.8]} 18... Ne8 {[%clk 0:02:05.7]} 19. Qd2 {[%clk 0:01:02.1]} 19...
Bc6 {[%clk 0:01:59.8]} 20. Ne2 {[%clk 0:00:50.4]} 20... Qb6 {[%clk 0:01:55.3]}
21. Nd4 {[%clk 0:00:44.4]} 21... Bd7 {[%clk 0:01:55.2]} 22. g4 {[%clk
0:00:36.4]} 22... Rxc1 {[%clk 0:01:35.2]} 23. Rxc1 {[%clk 0:00:36.5]} 23... e5
{[%clk 0:01:34.3]} 24. Nf5 {[%clk 0:00:33.4]} 24... Bxf5 {[%clk 0:01:33.4]} 25.
exf5 {[%clk 0:00:32]} 25... exf4 {[%clk 0:01:26.5]} 26. Qxf4 {[%clk 0:00:29.8]}
26... Bf6 {[%clk 0:01:26.1]} 27. Bxf6 {[%clk 0:00:23.4]} 27... Nxf6 {[%clk
0:01:27]} 28. Rd1 {[%clk 0:00:18.6]} 28... Qc5 {[%clk 0:01:16.2]} 29. g5 {[%clk
0:00:17.4]} 29... Nh5 {[%clk 0:01:15.4]} 30. Qf3 {[%clk 0:00:15.5]} 30... Qe5+
{[%clk 0:01:15.2]} 31. Kg1 {[%clk 0:00:14.1]} 31... Nf4 {[%clk 0:01:16.1]} 32.
f6 {[%clk 0:00:09.8]} 32... Qxg5 {[%clk 0:01:02.9]} 33. fxg7 {[%clk 0:00:08.4]}
33... Kxg7 {[%clk 0:00:59]} 34. Rf1 {[%clk 0:00:08.4]} 34... Qxg2+ {[%clk
0:00:58.3]} 35. Qxg2+ {[%clk 0:00:08]} 35... Nxg2 {[%clk 0:00:59.2]} 36. Kxg2
{[%clk 0:00:08.9]} 36... Rc8 {[%clk 0:00:59.9]} 37. Rf2 {[%clk 0:00:08.2]} 37...
Rc5 {[%clk 0:00:57.6]} 38. Rd2 {[%clk 0:00:09.1]} 38... f6 {[%clk 0:00:49.1]}
39. Kg3 {[%clk 0:00:07.2]} 39... d5 {[%clk 0:00:45.7]} 40. Kf4 {[%clk 0:00:07]}
40... Kf7 {[%clk 0:00:46.1]} 41. Ke3 {[%clk 0:00:05.8]} 41... Ke6 {[%clk
0:00:45.8]} 42. Kd4 {[%clk 0:00:06]} 42... Kd6 {[%clk 0:00:46.2]} 43. Rf2 {[%clk
0:00:05.9]} 43... Rc1 {[%clk 0:00:42.8]} 44. Rxf6+ {[%clk 0:00:05.6]} 44... Ke7
{[%clk 0:00:43.7]} 45. Rh6 {[%clk 0:00:06]} 45... Rd1+ {[%clk 0:00:42]} 46. Ke3
{[%clk 0:00:05.6]} 46... d4+ {[%clk 0:00:40.2]} 47. Ke2 {[%clk 0:00:05.5]} 47...
Ra1 {[%clk 0:00:41.1]} 48. Kd3 {[%clk 0:00:05.7]} 48... Rxa2 {[%clk 0:00:40.3]}
49. Kxd4 {[%clk 0:00:05.9]} 49... Rc2 {[%clk 0:00:38.2]} 50. Rxh7+ {[%clk
0:00:04.8]} 50... Kd6 {[%clk 0:00:37.3]} 51. Rh5 {[%clk 0:00:05.1]} 51... Kc6
{[%clk 0:00:37]} 52. Rh6+ {[%clk 0:00:04.6]} 52... Kb7 {[%clk 0:00:37]} 53. Re6
{[%clk 0:00:03.2]} 53... b4 {[%clk 0:00:33.9]} 0-1

[Event "*** Titled Tuesday Blitz"]
[Site "Chess.com"]
[Date "2020.04.28"]
[Round "1"]
[White "HanSchut"]
[Black "ChesterF"]
[Result "1-0"]
[WhiteElo "2245"]
[BlackElo "2553"]
[TimeControl "180+1"]
[EndTime "10:07:39 PDT"]
[Termination "HanSchut won on time"]

1. e4 {[%clk 0:02:58.9]} 1... c5 {[%clk 0:02:59.5]} 2. Nf3 {[%clk 0:02:58.6]}
2... d6 {[%clk 0:02:58.8]} 3. d4 {[%clk 0:02:58.8]} 3... cxd4 {[%clk 0:02:59.7]}
4. Nxd4 {[%clk 0:02:59.3]} 4... Nf6 {[%clk 0:03:00]} 5. f3 {[%clk 0:02:59.9]}
5... e5 {[%clk 0:02:59.4]} 6. Bb5+ {[%clk 0:02:59.9]} 6... Nbd7 {[%clk
0:02:41.4]} 7. Nf5 {[%clk 0:02:59.3]} 7... a6 {[%clk 0:02:40]} 8. Bxd7+ {[%clk
0:02:55.6]} 8... Qxd7 {[%clk 0:02:38.6]} 9. c4 {[%clk 0:02:50.1]} 9... b5 {[%clk
0:02:33]} 10. cxb5 {[%clk 0:02:42.5]} 10... axb5 {[%clk 0:02:28.5]} 11. Nc3
{[%clk 0:02:42.1]} 11... d5 {[%clk 0:02:15.2]} 12. Bg5 {[%clk 0:02:25.1]} 12...
b4 {[%clk 0:01:50.8]} 13. Bxf6 {[%clk 0:02:11]} 13... bxc3 {[%clk 0:01:48.4]}
14. Bxe5 {[%clk 0:01:22.8]} 14... cxb2 {[%clk 0:01:47.6]} 15. Bxb2 {[%clk
0:01:20.5]} 15... Bb4+ {[%clk 0:01:39]} 16. Kf2 {[%clk 0:01:18.4]} 16... O-O
{[%clk 0:00:32.1]} 17. Qd4 {[%clk 0:00:57.7]} 17... Qa7 {[%clk 0:00:29]} 18.
Qxa7 {[%clk 0:00:48.5]} 18... Rxa7 {[%clk 0:00:28.6]} 19. Bxg7 {[%clk
0:00:32.8]} 19... Re8 {[%clk 0:00:28.2]} 20. Bd4 {[%clk 0:00:30.2]} 20... Ra8
{[%clk 0:00:14.5]} 21. Nh6+ {[%clk 0:00:25.9]} 21... Kf8 {[%clk 0:00:14.5]} 22.
exd5 {[%clk 0:00:24.1]} 22... Bd2 {[%clk 0:00:11.3]} 23. Ng4 {[%clk 0:00:17.5]}
23... Ra4 {[%clk 0:00:11.5]} 24. Bc5+ {[%clk 0:00:16]} 24... Kg7 {[%clk
0:00:10.7]} 25. Rhd1 {[%clk 0:00:16.1]} 25... Bc3 {[%clk 0:00:10.5]} 26. Rac1
{[%clk 0:00:14.2]} 26... Rxa2+ {[%clk 0:00:10.1]} 27. Kg3 {[%clk 0:00:14.7]}
27... Bxg4 {[%clk 0:00:09.5]} 28. Rxc3 {[%clk 0:00:13.5]} 28... Bf5 {[%clk
0:00:08.8]} 29. Bd4+ {[%clk 0:00:13.4]} 29... Kg6 {[%clk 0:00:08.6]} 30. Rc6+
{[%clk 0:00:12.3]} 30... Kh5 {[%clk 0:00:07.3]} 31. Kf4 {[%clk 0:00:12.8]} 31...
Rxg2 {[%clk 0:00:06.1]} 32. Be3 {[%clk 0:00:09]} 32... Rg5 {[%clk 0:00:01.8]}
33. d6 {[%clk 0:00:06.6]} 33... Bg6 {[%clk 0:00:01.6]} 34. d7 {[%clk 0:00:06.1]}
34... Ree5 {[%clk 0:00:02.1]} 35. Rf6 {[%clk 0:00:05.4]} 35... Ref5+ {[%clk
0:00:01.7]} 36. Rxf5 {[%clk 0:00:05.9]} 36... Rxf5+ {[%clk 0:00:02.2]} 37. Kg3
{[%clk 0:00:06.8]} 37... Re5 {[%clk 0:00:02.5]} 38. Kf2 {[%clk 0:00:06.7]} 38...
Rxe3 {[%clk 0:00:01.8]} 39. Kxe3 {[%clk 0:00:06.5]} 1-0

[Event "*** Titled Tuesday Blitz"]
[Site "Chess.com"]
[Date "2020.04.28"]
[Round "1"]
[White "OhanyanEminChess"]
[Black "Ariadna_Atreides"]
[Result "1-0"]
[WhiteElo "2493"]
[BlackElo "2036"]
[TimeControl "180+1"]
[EndTime "10:07:39 PDT"]
[Termination "OhanyanEminChess won on time"]

1. e4 {[%clk 0:02:59.8]} 1... c5 {[%clk 0:02:59.5]} 2. Nf3 {[%clk 0:02:55.8]}
2... d6 {[%clk 0:02:59.5]} 3. d4 {[%clk 0:02:55.6]} 3... cxd4 {[%clk 0:02:59.8]}
4. Nxd4 {[%clk 0:02:56.5]} 4... Nf6 {[%clk 0:03:00.1]} 5. Nc3 {[%clk 0:02:56.6]}
5... Nc6 {[%clk 0:03:00.2]} 6. Bc4 {[%clk 0:02:56.2]} 6... g6 {[%clk 0:02:56.4]}
7. Nxc6 {[%clk 0:02:55]} 7... bxc6 {[%clk 0:02:52.6]} 8. e5 {[%clk 0:02:54.9]}
8... Ng4 {[%clk 0:02:45.5]} 9. Bf4 {[%clk 0:02:52.4]} 9... d5 {[%clk 0:02:36.5]}
10. Nxd5 {[%clk 0:01:53]} 10... cxd5 {[%clk 0:02:27.8]} 11. Bxd5 {[%clk
0:01:53.9]} 11... Qb6 {[%clk 0:01:58.5]} 12. O-O {[%clk 0:01:45.3]} 12... Rb8
{[%clk 0:01:56.3]} 13. e6 {[%clk 0:01:40.2]} 13... fxe6 {[%clk 0:01:42.7]} 14.
Bxb8 {[%clk 0:01:22.7]} 14... exd5 {[%clk 0:01:41.7]} 15. Bg3 {[%clk 0:01:18.5]}
15... Nf6 {[%clk 0:01:34.5]} 16. Be5 {[%clk 0:01:10.2]} 16... Be6 {[%clk
0:01:23.3]} 17. Bxf6 {[%clk 0:01:06.5]} 17... exf6 {[%clk 0:01:23]} 18. Re1
{[%clk 0:01:03.1]} 18... Be7 {[%clk 0:01:21.8]} 19. Qe2 {[%clk 0:00:51.4]} 19...
Kf7 {[%clk 0:01:21.2]} 20. Rad1 {[%clk 0:00:51.9]} 20... Re8 {[%clk 0:01:16.2]}
21. Rd3 {[%clk 0:00:46.5]} 21... Bc5 {[%clk 0:01:11.6]} 22. Qd2 {[%clk
0:00:33.7]} 22... Qxb2 {[%clk 0:01:02.9]} 23. Rb3 {[%clk 0:00:27.6]} 23... Qd4
{[%clk 0:00:54.7]} 24. Rb7+ {[%clk 0:00:27.9]} 24... Re7 {[%clk 0:00:16.6]} 25.
Rxe7+ {[%clk 0:00:27]} 25... Kxe7 {[%clk 0:00:16.1]} 26. Qe2 {[%clk 0:00:27.6]}
26... Qe5 {[%clk 0:00:15.7]} 27. Qf1 {[%clk 0:00:22.1]} 27... Qd6 {[%clk
0:00:13.8]} 28. Qb5 {[%clk 0:00:15.7]} 28... Bb6 {[%clk 0:00:13.1]} 29. h3
{[%clk 0:00:12.3]} 29... Qf4 {[%clk 0:00:12.6]} 30. Qe2 {[%clk 0:00:11.8]} 30...
Qd6 {[%clk 0:00:11.1]} 31. Qd2 {[%clk 0:00:10.2]} 31... Kf7 {[%clk 0:00:10]} 32.
Qh6 {[%clk 0:00:09.4]} 32... Kg8 {[%clk 0:00:08.9]} 33. Qh4 {[%clk 0:00:10]}
33... Bf7 {[%clk 0:00:08.1]} 34. Qg4 {[%clk 0:00:06.8]} 34... f5 {[%clk
0:00:06.2]} 35. Qa4 {[%clk 0:00:06.1]} 35... Qc5 {[%clk 0:00:05.4]} 36. Rf1
{[%clk 0:00:06.2]} 36... Qd4 {[%clk 0:00:04.7]} 37. Qd7 {[%clk 0:00:05.6]} 37...
Qd2 {[%clk 0:00:03.4]} 38. Qc8+ {[%clk 0:00:05.6]} 38... Kg7 {[%clk 0:00:02.9]}
39. Qb8 {[%clk 0:00:05.9]} 39... Qxc2 {[%clk 0:00:01.3]} 40. Qe5+ {[%clk
0:00:06.5]} 1-0

[Event "*** Titled Tuesday Blitz"]
[Site "Chess.com"]
[Date "2020.04.28"]
[Round "1"]
[White "Baby_Legs"]
[Black "ahachess"]
[Result "1-0"]
[WhiteElo "2719"]
[BlackElo "2380"]
[TimeControl "180+1"]
[EndTime "10:07:40 PDT"]
[Termination "Baby_Legs won on time"]

1. d4 {[%clk 0:03:00.5]} 1... Nf6 {[%clk 0:02:56.8]} 2. Nf3 {[%clk 0:02:59.5]}
2... g6 {[%clk 0:02:56.8]} 3. e3 {[%clk 0:02:58.9]} 3... Bg7 {[%clk 0:02:56.8]}
4. c4 {[%clk 0:02:58.9]} 4... O-O {[%clk 0:02:56.7]} 5. Be2 {[%clk 0:02:59.4]}
5... c5 {[%clk 0:02:57.1]} 6. d5 {[%clk 0:02:59.2]} 6... d6 {[%clk 0:02:55.8]}
7. Nc3 {[%clk 0:02:59]} 7... a6 {[%clk 0:02:52.1]} 8. O-O {[%clk 0:02:56.1]}
8... e6 {[%clk 0:02:51.2]} 9. a4 {[%clk 0:02:52.4]} 9... exd5 {[%clk 0:02:51.1]}
10. cxd5 {[%clk 0:02:53.3]} 10... Nbd7 {[%clk 0:02:47.9]} 11. Qc2 {[%clk
0:02:42.6]} 11... Qe7 {[%clk 0:02:43.4]} 12. Re1 {[%clk 0:02:29.8]} 12... Re8
{[%clk 0:02:33.9]} 13. Nd2 {[%clk 0:02:25.3]} 13... Rb8 {[%clk 0:02:26.3]} 14.
e4 {[%clk 0:02:08.6]} 14... g5 {[%clk 0:01:55.7]} 15. a5 {[%clk 0:01:29.3]}
15... Ne5 {[%clk 0:01:54.3]} 16. Nc4 {[%clk 0:01:18.5]} 16... Nxc4 {[%clk
0:01:53.5]} 17. Bxc4 {[%clk 0:01:19.4]} 17... Nd7 {[%clk 0:01:53.6]} 18. Bf1
{[%clk 0:01:07.7]} 18... Ne5 {[%clk 0:01:52.2]} 19. Ra3 {[%clk 0:01:05.9]} 19...
f5 {[%clk 0:01:44]} 20. f3 {[%clk 0:00:58.1]} 20... f4 {[%clk 0:01:40.3]} 21.
Na4 {[%clk 0:00:57.2]} 21... Ng6 {[%clk 0:01:36.1]} 22. Nb6 {[%clk 0:00:54.2]}
22... Bd4+ {[%clk 0:01:32.9]} 23. Kh1 {[%clk 0:00:54.6]} 23... Rf8 {[%clk
0:01:12.9]} 24. b4 {[%clk 0:00:50.1]} 24... Bd7 {[%clk 0:01:08.8]} 25. bxc5
{[%clk 0:00:47.5]} 25... Bxc5 {[%clk 0:00:59.8]} 26. Rb3 {[%clk 0:00:44.8]}
26... Ne5 {[%clk 0:00:46.6]} 27. Ba3 {[%clk 0:00:43.5]} 27... Be3 {[%clk
0:00:29.7]} 28. Qc7 {[%clk 0:00:33.4]} 28... g4 {[%clk 0:00:12.9]} 29. Qxd6
{[%clk 0:00:22.1]} 29... Qh4 {[%clk 0:00:12.4]} 30. Rexe3 {[%clk 0:00:18.1]}
30... fxe3 {[%clk 0:00:10.3]} 31. Qxe5 {[%clk 0:00:17.8]} 31... Qf2 {[%clk
0:00:10]} 32. Qg5+ {[%clk 0:00:15.6]} 32... Kf7 {[%clk 0:00:08.3]} 33. Rb1
{[%clk 0:00:12.1]} 1-0

[Event "*** Titled Tuesday Blitz"]
[Site "Chess.com"]
[Date "2020.04.28"]
[Round "1"]
[White "temiksmozg"]
[Black "Khayala13"]
[Result "1-0"]
[WhiteElo "2646"]
[BlackElo "2322"]
[TimeControl "180+1"]
[EndTime "10:07:40 PDT"]
[Termination "temiksmozg won by resignation"]

1. d4 {[%clk 0:02:59.7]} 1... Nf6 {[%clk 0:02:58.4]} 2. c4 {[%clk 0:02:59.3]}
2... e6 {[%clk 0:02:58.6]} 3. Nc3 {[%clk 0:02:58.1]} 3... Bb4 {[%clk 0:02:59.1]}
4. e3 {[%clk 0:02:58.3]} 4... b6 {[%clk 0:02:56.9]} 5. Bd3 {[%clk 0:02:56.8]}
5... Bb7 {[%clk 0:02:57.4]} 6. Ne2 {[%clk 0:02:55.8]} 6... Ne4 {[%clk
0:02:54.4]} 7. O-O {[%clk 0:02:51.7]} 7... Nxc3 {[%clk 0:02:53.8]} 8. bxc3
{[%clk 0:02:50]} 8... Be7 {[%clk 0:02:52.5]} 9. e4 {[%clk 0:02:48.5]} 9... d6
{[%clk 0:02:50.4]} 10. f4 {[%clk 0:02:48.6]} 10... Nd7 {[%clk 0:02:50.4]} 11.
Be3 {[%clk 0:02:41.6]} 11... Nf6 {[%clk 0:02:45.9]} 12. d5 {[%clk 0:02:28.8]}
12... O-O {[%clk 0:02:39]} 13. Nd4 {[%clk 0:02:26.4]} 13... e5 {[%clk
0:02:28.7]} 14. fxe5 {[%clk 0:02:16.2]} 14... dxe5 {[%clk 0:02:27.8]} 15. Nf5
{[%clk 0:02:16.7]} 15... Bc8 {[%clk 0:02:12.9]} 16. Nxe7+ {[%clk 0:02:14.6]}
16... Qxe7 {[%clk 0:02:11.8]} 17. c5 {[%clk 0:02:09.2]} 17... Ng4 {[%clk
0:02:05.7]} 18. Qf3 {[%clk 0:02:05]} 18... Nxe3 {[%clk 0:02:02.5]} 19. Qxe3
{[%clk 0:02:05.9]} 19... bxc5 {[%clk 0:01:55.2]} 20. Rab1 {[%clk 0:02:06.1]}
20... a5 {[%clk 0:01:52.8]} 21. h3 {[%clk 0:01:50.8]} 21... a4 {[%clk
0:01:51.9]} 22. Bb5 {[%clk 0:01:28.5]} 22... a3 {[%clk 0:01:45.8]} 23. Bc6
{[%clk 0:01:26.4]} 23... Ra5 {[%clk 0:01:43.2]} 24. Rb8 {[%clk 0:01:25.3]} 24...
Ba6 {[%clk 0:01:31.1]} 25. Rfb1 {[%clk 0:01:24.7]} 25... h6 {[%clk 0:01:28.2]}
26. Rxf8+ {[%clk 0:01:12.1]} 26... Qxf8 {[%clk 0:01:29.1]} 27. Qg3 {[%clk
0:01:09.8]} 27... Qd6 {[%clk 0:01:10.5]} 28. Rb8+ {[%clk 0:01:06.6]} 28... Kh7
{[%clk 0:01:10.4]} 29. Re8 {[%clk 0:00:59.3]} 29... Qf6 {[%clk 0:00:54.5]} 30.
Bd7 {[%clk 0:00:51.5]} 30... Be2 {[%clk 0:00:44.2]} 31. Rxe5 {[%clk 0:00:43.5]}
31... Qf1+ {[%clk 0:00:37.9]} 32. Kh2 {[%clk 0:00:42.9]} 32... Ra6 {[%clk
0:00:38.8]} 33. Re7 {[%clk 0:00:39.5]} 33... Rf6 {[%clk 0:00:37.9]} 34. Bf5+
{[%clk 0:00:32.3]} 34... g6 {[%clk 0:00:36.8]} 35. Be6 {[%clk 0:00:28.9]} 35...
Kg7 {[%clk 0:00:34.7]} 36. Qe5 {[%clk 0:00:29.4]} 36... Qf4+ {[%clk 0:00:26.3]}
37. Qxf4 {[%clk 0:00:29.5]} 37... Rxf4 {[%clk 0:00:27.2]} 38. Rxc7 {[%clk
0:00:27.9]} 38... Rxe4 {[%clk 0:00:27.6]} 39. Rxf7+ {[%clk 0:00:25]} 39... Kh8
{[%clk 0:00:27.9]} 40. Ra7 {[%clk 0:00:25.4]} 40... Re3 {[%clk 0:00:27.7]} 41.
Rxa3 {[%clk 0:00:25]} 41... Rd3 {[%clk 0:00:27]} 42. Kg1 {[%clk 0:00:20.1]}
42... Rd2 {[%clk 0:00:26.5]} 43. Kf2 {[%clk 0:00:19.5]} 43... Bc4+ {[%clk
0:00:27]} 44. Ke3 {[%clk 0:00:19.8]} 44... Bxd5 {[%clk 0:00:27.9]} 45. Kxd2
{[%clk 0:00:19.4]} 45... Bxe6 {[%clk 0:00:28.3]} 46. Ra5 {[%clk 0:00:20.1]}
46... c4 {[%clk 0:00:28]} 47. a4 {[%clk 0:00:21]} 47... Kg7 {[%clk 0:00:27.7]}
48. Ra7+ {[%clk 0:00:21.9]} 48... Kf6 {[%clk 0:00:28.2]} 49. a5 {[%clk
0:00:22.8]} 49... Ke5 {[%clk 0:00:28.6]} 50. a6 {[%clk 0:00:23.2]} 50... Bd5
{[%clk 0:00:29.5]} 51. Rg7 {[%clk 0:00:22.1]} 51... Kf6 {[%clk 0:00:29.3]} 52.
Rc7 {[%clk 0:00:22.4]} 52... Ke5 {[%clk 0:00:29.2]} 53. a7 {[%clk 0:00:22.8]}
53... Kd6 {[%clk 0:00:29.3]} 54. Rc8 {[%clk 0:00:23.7]} 54... Bb7 {[%clk
0:00:27.1]} 55. a8=Q {[%clk 0:00:24.6]} 55... Bxa8 {[%clk 0:00:27.2]} 56. Rxa8
{[%clk 0:00:25.5]} 1-0

[Event "*** Titled Tuesday Blitz"]
[Site "Chess.com"]
[Date "2020.04.28"]
[Round "1"]
[White "MusicCityMaster"]
[Black "Valuebet2000"]
[Result "0-1"]
[WhiteElo "2244"]
[BlackElo "2580"]
[TimeControl "180+1"]
[EndTime "10:07:41 PDT"]
[Termination "Valuebet2000 won on time"]

1. d4 {[%clk 0:02:59.4]} 1... d5 {[%clk 0:02:57.8]} 2. c4 {[%clk 0:02:58.2]}
2... e6 {[%clk 0:02:57.9]} 3. Nf3 {[%clk 0:02:56.9]} 3... Nf6 {[%clk 0:02:58.2]}
4. Bg5 {[%clk 0:02:52.3]} 4... Be7 {[%clk 0:02:41.6]} 5. e3 {[%clk 0:02:51.7]}
5... h6 {[%clk 0:02:39.2]} 6. Bxf6 {[%clk 0:02:50.2]} 6... Bxf6 {[%clk
0:02:40.1]} 7. Nc3 {[%clk 0:02:49.3]} 7... O-O {[%clk 0:02:36.7]} 8. Rc1 {[%clk
0:02:48.7]} 8... c6 {[%clk 0:02:33.9]} 9. Bd3 {[%clk 0:02:48.1]} 9... dxc4
{[%clk 0:02:28.1]} 10. Bxc4 {[%clk 0:02:48]} 10... b5 {[%clk 0:02:28.5]} 11. Bb3
{[%clk 0:02:44.1]} 11... Bb7 {[%clk 0:02:27.3]} 12. Ne4 {[%clk 0:02:43.8]} 12...
Nd7 {[%clk 0:02:27.1]} 13. O-O {[%clk 0:02:36.9]} 13... Be7 {[%clk 0:02:25.4]}
14. Qe2 {[%clk 0:02:13.4]} 14... Qb6 {[%clk 0:02:18.1]} 15. Qc2 {[%clk
0:01:38.9]} 15... Rac8 {[%clk 0:01:38.9]} 16. Nc5 {[%clk 0:01:37.1]} 16... Nxc5
{[%clk 0:01:39.3]} 17. dxc5 {[%clk 0:01:36.8]} 17... Qc7 {[%clk 0:01:39.9]} 18.
Nd4 {[%clk 0:01:33.7]} 18... Rfd8 {[%clk 0:01:37.2]} 19. Rfd1 {[%clk 0:01:23.6]}
19... Bf6 {[%clk 0:01:28]} 20. h3 {[%clk 0:00:54.2]} 20... Kh8 {[%clk
0:01:16.1]} 21. Qe4 {[%clk 0:00:51]} 21... Qe7 {[%clk 0:01:05.3]} 22. f4 {[%clk
0:00:45.1]} 22... Rd7 {[%clk 0:00:49.6]} 23. Bc2 {[%clk 0:00:44.4]} 23... g6
{[%clk 0:00:47.9]} 24. b4 {[%clk 0:00:35.8]} 24... a6 {[%clk 0:00:28.3]} 25. Nf3
{[%clk 0:00:35.5]} 25... Rcd8 {[%clk 0:00:25.5]} 26. Rxd7 {[%clk 0:00:34.8]}
26... Rxd7 {[%clk 0:00:26.4]} 27. Rd1 {[%clk 0:00:31.6]} 27... Rxd1+ {[%clk
0:00:25.1]} 28. Bxd1 {[%clk 0:00:31.1]} 28... Qd7 {[%clk 0:00:25.5]} 29. Bc2
{[%clk 0:00:30.8]} 29... Qd5 {[%clk 0:00:19.1]} 30. Qxd5 {[%clk 0:00:21]} 30...
exd5 {[%clk 0:00:20]} 31. Nd4 {[%clk 0:00:20.6]} 31... Kg7 {[%clk 0:00:19.5]}
32. Kf2 {[%clk 0:00:20]} 32... Kf8 {[%clk 0:00:19.7]} 33. g4 {[%clk 0:00:16.4]}
33... Ke7 {[%clk 0:00:19.6]} 34. Kf3 {[%clk 0:00:15.1]} 34... Bh4 {[%clk
0:00:19]} 35. Ne2 {[%clk 0:00:14.1]} 35... Be1 {[%clk 0:00:18.4]} 36. a3 {[%clk
0:00:12.9]} 36... a5 {[%clk 0:00:18.7]} 37. e4 {[%clk 0:00:12.1]} 37... axb4
{[%clk 0:00:13.2]} 38. axb4 {[%clk 0:00:11.1]} 38... Bxb4 {[%clk 0:00:14]} 39.
Nd4 {[%clk 0:00:10.3]} 39... Bxc5 {[%clk 0:00:13.5]} 40. Nb3 {[%clk 0:00:08.8]}
40... Bb6 {[%clk 0:00:13.3]} 41. exd5 {[%clk 0:00:08.4]} 41... cxd5 {[%clk
0:00:14.2]} 42. Ke2 {[%clk 0:00:07.7]} 42... Kd6 {[%clk 0:00:14.1]} 43. Bd3
{[%clk 0:00:07.8]} 43... b4 {[%clk 0:00:14.1]} 44. Bb5 {[%clk 0:00:07]} 44... d4
{[%clk 0:00:11.4]} 45. Kd3 {[%clk 0:00:05.1]} 45... Bg2 {[%clk 0:00:11.7]} 46.
h4 {[%clk 0:00:03.9]} 46... Bf1+ {[%clk 0:00:11.8]} 0-1